fUST/lending_fUST_20240828
["ID","MTS","AMOUNT","RATE_DAILY","PERIOD"]
[336457286,1724841038522,-2855.8645384,0.00012742,2]
[336457287,1724841038535,-8076.93499864,0.000129,2]
[336457288,1724841038547,-500.0,0.00012919,2]
[336457289,1724841038559,-493.69395889,0.0001295,2]
[336457290,1724841038572,-863.27824545,0.00013,2]
[336457291,1724841038583,-521.86780136,0.00013025,2]
[336457292,1724841038594,-600.0,0.00013095,2]
[336457293,1724841038607,-150.112233,0.000132,2]
[336457294,1724841038618,-600.0,0.00013268,2]
[336457295,1724841038628,-600.0,0.00013268,2]
[336457296,1724841038639,-600.0,0.00013287,2]
[336457297,1724841038650,-600.0,0.00013287,2]
[336457298,1724841038662,-600.0,0.00013553,2]
[336457299,1724841038672,-2117.35215153,0.00013598,2]
[336457300,1724841038683,-1177.91129878,0.00013598,2]
[336457301,1724841038693,-3885.97236119,0.00013599,2]
[336457302,1724841038704,-500.0,0.00013599,2]
[336457303,1724841038715,-587.0,0.00013633,2]
[336457304,1724841038726,-182.469007,0.00013688,2]
[336457305,1724841038737,-110168.94968352,0.00013688,2]
[336457306,1724841038752,-1838.97940606,0.00013688,2]
[336457317,1724841040447,-69474.25379442,0.00013688,2]
[336457318,1724841040458,-210.18192358,0.00013698,2]
[336457319,1724841040468,-500.0,0.00013698,2]
[336457320,1724841040477,-500.0,0.00013698,2]
[336457321,1724841040487,-500.0,0.00013698,2]
[336457322,1724841040497,-500.0,0.00013698,2]
[336457323,1724841040506,-500.0,0.00013698,2]
[336457324,1724841040516,-500.0,0.00013698,2]
[336457325,1724841040526,-500.0,0.00013698,2]
[336457326,1724841040539,-500.0,0.00013698,2]
[336457327,1724841040549,-500.0,0.00013698,2]
[336457328,1724841040558,-500.0,0.00013698,2]
[336457329,1724841040567,-500.0,0.00013698,2]
[336457330,1724841040579,-618.32532387,0.00013698,2]
[336457331,1724841040588,-155.42437107,0.00013698,2]
[336457332,1724841040599,-500.0,0.00013698,2]
[336457333,1724841040609,-418.89408924,0.00013698,2]
[336457334,1724841040619,-500.0,0.00013698,2]
[336457335,1724841040628,-500.0,0.00013698,2]
[336457336,1724841040638,-500.0,0.00013698,2]
[336457337,1724841040647,-500.0,0.00013698,2]
[336457338,1724841040657,-500.0,0.00013698,2]
[336457339,1724841040666,-239.94697089,0.00013698,2]
[336457340,1724841040675,-500.0,0.00013698,2]
[336457341,1724841040685,-584.97416703,0.00013698,2]
[336457342,1724841040695,-500.0,0.00013698,2]
[336457343,1724841040704,-500.0,0.00013698,2]
[336457344,1724841040713,-500.0,0.00013698,2]
[336457345,1724841040722,-500.0,0.00013698,2]
[336457346,1724841040731,-500.0,0.00013698,2]
[336457347,1724841040741,-500.0,0.00013698,2]
[336457348,1724841040750,-771.485303,0.00013699,2]
[336457349,1724841040760,-1117.667495,0.00013699,2]
[336457350,1724841040769,-30133.1611852,0.00013699,2]
[336457351,1724841040778,-3000.0,0.00013699,2]
[336457352,1724841040787,-500.0,0.00013699,2]
[336457353,1724841040797,-500.0,0.00013699,2]
[336457354,1724841040806,-500.0,0.00013699,2]
[336457355,1724841040815,-627.39290519,0.00013699,2]
[336457356,1724841040824,-150.112233,0.000137,2]
[336457357,1724841040834,-11559.63334553,0.00013971,2]
[336457358,1724841040843,-168.804,0.00014,2]
[336457359,1724841040852,-236.11350432,0.00014,2]
[336457360,1724841040862,-150.112233,0.000141,2]
[336457361,1724841040871,-169.50740567,0.00014245,2]
[336457362,1724841040880,-187.5,0.00014247,2]
[336457363,1724841040890,-712.5,0.00014247,2]
[336457364,1724841040900,-500.0,0.00014315,2]
[336457365,1724841040909,-181482.182884,0.0001434,2]
[336457366,1724841040919,-751.97281741,0.0001435,2]
[336457367,1724841040928,-600.0,0.0001435,2]
[336457368,1724841040938,-390.33975893,0.00014373,2]
[336457369,1724841040947,-500.0,0.00014373,2]
[336457370,1724841040957,-150.112235,0.000144,2]
[336457371,1724841040966,-600.0,0.0001455,2]
[336457372,1724841040975,-150.112233,0.000146,2]
[336457373,1724841040985,-150.112233,0.000146,2]
[336457374,1724841040995,-150.112233,0.000148,2]
[336457375,1724841041005,-182.469007,0.0001498,2]
[336457376,1724841041014,-480.911259,0.0001498,2]
[336457377,1724841041023,-480.911259,0.0001498,2]
[336457378,1724841041033,-744.392163,0.0001498,2]
[336457379,1724841041042,-744.392163,0.0001498,2]
[336457380,1724841041051,-151.0,0.0001498,2]
[336457381,1724841041060,-151.0,0.0001498,2]
[336457382,1724841041069,-158.295404,0.0001498,2]
[336457383,1724841041079,-158.295404,0.0001498,2]
[336457384,1724841041089,-786.123851,0.0001499,2]
[336457385,1724841041099,-786.123851,0.0001499,2]
[336457386,1724841041109,-536.325975,0.0001499,2]
[336457387,1724841041123,-536.325975,0.0001499,2]
[336457388,1724841041132,-151.0,0.0001499,2]
[336457389,1724841041142,-3036.49364,0.0001499,2]
[336457390,1724841041151,-3036.49364,0.0001499,2]
[336457391,1724841041162,-789.683306,0.0001499,2]
[336457392,1724841041171,-789.683306,0.0001499,2]
[336457393,1724841041181,-151.0,0.0001499,2]
[336457394,1724841041190,-2222.44149,0.0001499,2]
[336457395,1724841041201,-2222.44149,0.0001499,2]
[336457396,1724841041211,-151.0,0.0001499,2]
[336457397,1724841041220,-151.0,0.0001499,2]
[336457398,1724841041229,-151.0,0.0001499,2]
[336457399,1724841041239,-420.0,0.00014996,2]
[336457400,1724841041249,-28427.42872174,0.00015,5]
[336457401,1724841041258,-20806.3048966,0.00015,2]
[336457402,1724841041267,-154.63660398,0.00015,2]
[336457403,1724841041277,-150.112233,0.000151,2]
[336457404,1724841041286,-3885.97236117,0.00015269,2]
[336457405,1724841041295,-150.112233,0.000156,2]
[336457406,1724841041304,-500.0,0.00015822,2]
[336457407,1724841041313,-1126.2,0.00016,30]
[336457408,1724841041323,-150.112233,0.000161,2]
[336457409,1724841041332,-181482.182884,0.0001659,2]
[336457410,1724841041341,-150.112233,0.000166,2]
[336457411,1724841041353,-500.0,0.00016613,2]
[336457412,1724841041362,-3885.97236117,0.00016938,2]
[336457413,1724841041372,-150.112233,0.00017,2]
[336457414,1724841041382,-818.2048408,0.00017112,2]
[336457415,1724841041392,-409.4159754,0.00017112,2]
[336457416,1724841041402,-184.9186771,0.00017112,2]
[336457417,1724841041413,-500.0,0.00017444,2]
[336457418,1724841041423,-150.112233,0.000175,2]
[336457419,1724841041433,-153.0,0.00017534,2]
[336457420,1724841041443,-5722.67256098,0.00017731,2]
[336457421,1724841041453,-9447.48265084,0.00017896,2]
[336457422,1724841041463,-10348.85088979,0.00017898,2]
[336457423,1724841041473,-151.0,0.00017924,2]
[336457424,1724841041482,-151.0,0.00017924,2]
[336457425,1724841041492,-151.0,0.00017924,2]
[336457426,1724841041501,-151.0,0.0001799,2]
[336457427,1724841041511,-151.0,0.0001799,2]
[336457428,1724841041521,-156990.40442905,0.0001799,2]
[336457437,1724841043334,-366.68848046,0.00012121,2]
[336457438,1724841043349,-24491.77845495,0.0001799,2]
[336457439,1724841043358,-151.0,0.0001799,2]
[336457440,1724841043368,-151.0,0.0001799,2]
[336457441,1724841043378,-60647.0708836,0.00018,2]
[336457442,1724841043389,-11978.57918719,0.00018,2]
[336457454,1724841046300,-1416.37358296,0.00012121,2]
[336457455,1724841046309,-5322.22752304,0.00018,2]
[336457456,1724841046320,-500.0,0.00018,2]
[336457457,1724841046330,-182.469007,0.00018,2]
[336457458,1724841046339,-480.911259,0.00018,2]
[336457459,1724841046354,-480.911259,0.00018,2]
[336457460,1724841046364,-744.392163,0.00018,2]
[336457461,1724841046374,-744.392163,0.00018,2]
[336457462,1724841046384,-151.0,0.00018,2]
[336457463,1724841046394,-151.0,0.00018,2]
[336457464,1724841046404,-158.295404,0.00018,2]
[336457465,1724841046414,-158.295404,0.00018,2]
[336457466,1724841046424,-786.123851,0.00018,2]
[336457467,1724841046434,-786.123851,0.00018,2]
[336457468,1724841046444,-536.325975,0.00018,2]
[336457469,1724841046454,-536.325975,0.00018,2]
[336457470,1724841046464,-232.967245,0.00018,2]
[336457471,1724841046473,-3036.49364,0.00018,2]
[336457472,1724841046483,-3036.49364,0.00018,2]
[336457473,1724841046492,-789.683306,0.00018,2]
[336457474,1724841046502,-789.683306,0.00018,2]
[336457475,1724841046511,-151.0,0.00018,2]
[336457476,1724841046521,-2222.44149,0.00018,2]
[336457477,1724841046532,-2222.44149,0.00018,2]
[336457478,1724841046545,-151.0,0.00018,2]
[336457479,1724841046554,-151.0,0.00018,2]
[336457480,1724841046563,-153.0722618,0.00018138,2]
[336457481,1724841046575,-500.0,0.00018316,2]
[336457482,1724841046585,-500.0,0.00018453,2]
[336457483,1724841046594,-800.0,0.00018516,2]
[336457484,1724841046605,-500.0,0.00018568,2]
[336457485,1724841046617,-3885.97236117,0.00018608,2]
[336457486,1724841046627,-500.0,0.00018725,2]
[336457487,1724841046637,-700.0,0.00018727,2]
[336457488,1724841046646,-700.0,0.00018767,2]
[336457489,1724841046656,-700.0,0.00018816,2]
[336457490,1724841046666,-153.0,0.00018854,2]
[336457491,1724841046677,-700.0,0.00018859,2]
[336457492,1724841046687,-151.0,0.00018859,2]
[336457493,1724841046696,-151.0,0.00018859,2]
[336457494,1724841046706,-800.0,0.00018874,2]
[336457495,1724841046715,-507.364174,0.00018904,2]
[336457496,1724841046725,-465.00000674,0.00018952,2]
[336457497,1724841046735,-500.0,0.00019045,2]
[336457498,1724841046744,-700.0,0.00019073,2]
[336457499,1724841046754,-223.52086,0.00019178,2]
[336457500,1724841046764,-169.732904,0.00019178,2]
[336457501,1724841046774,-251.0,0.00019178,2]
[336457502,1724841046783,-187.92707,0.00019178,2]
[336457503,1724841046792,-193.45186391,0.0001918,2]
[336457504,1724841046801,-193.45186391,0.0001918,2]
[336457505,1724841046811,-193.45186391,0.0001918,2]
[336457506,1724841046821,-193.45186391,0.0001918,2]
[336457507,1724841046830,-193.45186391,0.0001918,2]
[336457508,1724841046839,-193.45186391,0.0001918,2]
[336457509,1724841046852,-193.45186391,0.0001918,2]
[336457510,1724841046861,-193.45186391,0.0001918,2]
[336457511,1724841046871,-193.45186391,0.0001918,2]
[336457512,1724841046880,-193.45186391,0.0001918,2]
[336457513,1724841046890,-193.45186391,0.0001918,2]
[336457514,1724841046899,-193.45186391,0.0001918,2]
[336457515,1724841046909,-193.45186391,0.0001918,2]
[336457516,1724841046919,-193.45186391,0.0001918,2]
[336457517,1724841046928,-193.45186391,0.0001918,2]
[336457518,1724841046938,-193.45186391,0.0001918,2]
[336457519,1724841046947,-193.45186391,0.0001918,2]
[336457520,1724841046957,-193.45186391,0.0001918,2]
[336457521,1724841046966,-193.45186391,0.0001918,2]
[336457522,1724841046975,-193.95,0.0001918,2]
[336457523,1724841046985,-153.37885679,0.0001918,2]
[336457524,1724841046995,-153.37885679,0.0001918,2]
[336457525,1724841047005,-153.37885679,0.0001918,2]
[336457526,1724841047016,-153.37885679,0.0001918,2]
[336457527,1724841047026,-153.37885679,0.0001918,2]
[336457528,1724841047035,-153.37885679,0.0001918,2]
[336457529,1724841047044,-153.37885679,0.0001918,2]
[336457530,1724841047053,-153.37885679,0.0001918,2]
[336457531,1724841047063,-153.37885679,0.0001918,2]
[336457532,1724841047073,-153.37885679,0.0001918,2]
[336457533,1724841047082,-153.37885679,0.0001918,2]
[336457534,1724841047091,-153.37885679,0.0001918,2]
[336457535,1724841047104,-153.37885679,0.0001918,2]
[336457536,1724841047115,-153.37885679,0.0001918,2]
[336457537,1724841047124,-153.37885679,0.0001918,2]
[336457538,1724841047134,-153.87,0.0001918,2]
[336457539,1724841047143,-700.0,0.00019228,2]
[336457540,1724841047153,-500.0,0.00019232,2]
[336457541,1724841047162,-500.0,0.00019366,2]
[336457542,1724841047172,-800.0,0.00019408,2]
[336457543,1724841047181,-700.0,0.00019472,2]
[336457544,1724841047191,-700.0,0.00019489,2]
[336457545,1724841047200,-151.0,0.0001954,2]
[336457546,1724841047209,-700.0,0.00019627,2]
[336457547,1724841047219,-700.0,0.00019647,2]
[336457548,1724841047228,-700.0,0.00019707,2]
[336457549,1724841047237,-805.80992153,0.00019753,2]
[336457550,1724841047246,-1000.0,0.00019781,2]
[336457551,1724841047255,-800.0,0.00019802,2]
[336457552,1724841047265,-1000.0,0.00019822,2]
[336457553,1724841047274,-700.0,0.00019826,2]
[336457554,1724841047283,-182.469007,0.0001989,2]
[336457555,1724841047294,-480.911259,0.0001989,2]
[336457556,1724841047303,-480.911259,0.0001989,2]
[336457557,1724841047312,-744.392163,0.0001989,2]
[336457558,1724841047322,-744.392163,0.0001989,2]
[336457559,1724841047332,-151.0,0.0001989,2]
[336457560,1724841047341,-158.295404,0.0001989,2]
[336457561,1724841047352,-158.295404,0.0001989,2]
[336457562,1724841047362,-786.123851,0.0001989,2]
[336457563,1724841047372,-786.123851,0.0001989,2]
[336457564,1724841047381,-536.325975,0.0001989,2]
[336457565,1724841047391,-536.325975,0.0001989,2]
[336457566,1724841047400,-465.00000034,0.000199,2]
[336457567,1724841047410,-1831.32589662,0.00019974,2]
[336457568,1724841047419,-23633.03262479,0.0001999,2]
[336457587,1724842028174,-164.89556248,8.52e-05,2]
[336457588,1724842029135,-135.10443752,8.52e-05,2]
[336457589,1724842029159,-300.0,8.52e-05,2]
[336457590,1724842029182,-1246.61905536,8.521e-05,2]
[336457592,1724842046138,-1953.58266211,8.521e-05,2]
[336457593,1724842053097,-306.98992311,8.521e-05,2]
[336457596,1724842146104,-550.86404922,8.436e-05,2]
[336457598,1724842153127,-782.19526066,8.436e-05,2]
[336457599,1724842153153,-300.0,8.52e-05,2]
[336457600,1724842153179,-662.50905701,8.521e-05,2]
[336457601,1724842153203,-4104.00310895,8.521e-05,2]
[336457602,1724842153231,-280.19784161,9.372e-05,2]
[336457603,1724842153262,-139.80215839,9.372e-05,2]
[336457604,1724842155048,523.24613022,8.532e-05,2]
[336457605,1724842169121,-156.88931609,0.0001,2]
[336457606,1724842169144,-24900.0,0.00010054,2]
[336457607,1724842169167,-161.354253,0.00010104,2]
[336457608,1724842171924,272.94994552,8.521e-05,2]
[336457609,1724842171948,1878.19598625,8.521e-05,2]
[336457791,1724842238597,-180.0,9.999e-05,2]
[336457792,1724842238606,-7583.62253035,0.0001,5]
[336457793,1724842238618,-6258.26766098,0.0001,5]
[336457794,1724842238785,-131.14537595,0.0001,5]
[336457795,1724842238794,-161.354253,0.00010192,2]
[336457796,1724842238803,-161.354253,0.00010279,2]
[336457797,1724842238813,-302.02822139,0.00010328,2]
[336457798,1724842238823,-161.354253,0.00010367,2]
[336457799,1724842238833,-161.354253,0.00010455,2]
[336457800,1724842238842,-161.354253,0.00010543,2]
[336457801,1724842238852,-161.354253,0.0001063,2]
[336457802,1724842238861,-2611.26711056,0.00011268,2]
[336457803,1724842238871,-156.75044287,0.00011742,2]
[336457804,1724842238882,-1464.2945855,0.00012898,2]
[336457805,1724842238891,-154.76012181,0.00012898,2]
[336457806,1724842238900,-3681.89040431,0.000129,2]
[336457807,1724842238911,-493.77204427,0.0001295,2]
[336457808,1724842238920,-811.78467002,0.00012971,2]
[336457809,1724842238936,-1125.63370669,0.00012989,2]
[336457816,1724842240793,-60.60576865,0.00012989,2]
[336457817,1724842240803,-301.82720385,0.00012989,2]
[336457818,1724842240812,-521.86780136,0.00012991,2]
[336457819,1724842240822,-863.27824545,0.00013,2]
[336457820,1724842240832,-422.1184028,0.00013599,2]
[336457821,1724842240841,-221.8034801,0.00013697,2]
[336457822,1724842240851,-270.19734543,0.00013697,7]
[336457823,1724842240860,-367.75309794,0.00013697,2]
[336457824,1724842240870,-3000.0,0.00013699,2]
[336457825,1724842240879,-482.178315,0.00013699,2]
[336457826,1724842240890,-168.804,0.00014,2]
[336457827,1724842240899,-750.0,0.00014247,2]
[336457828,1724842240908,-892.76633942,0.00015,2]
[336457833,1724842243592,-61.35445272,0.00015,2]
[336457834,1724842243602,-20806.3048966,0.00015,2]
[336457835,1724842243612,-10348.85088979,0.00017898,2]
[336457836,1724842243622,-5332.84883562,0.00018097,2]
[336457837,1724842243632,-5332.84883562,0.00018367,2]
[336457838,1724842243643,-500.0,0.00018519,2]
[336457839,1724842243654,-5332.84883562,0.00018662,2]
[336457840,1724842243665,-2000.0,0.00018701,2]
[336457841,1724842243676,-500.0,0.00018747,2]
[336457842,1724842243686,-500.0,0.00018771,2]
[336457843,1724842243696,-700.0,0.00018785,2]
[336457844,1724842243705,-500.0,0.00018789,2]
[336457845,1724842243714,-315.34294601,0.00018789,2]
[336457846,1724842243724,-500.0,0.00018789,2]
[336457847,1724842243736,-204.99002872,0.00018789,2]
[336457848,1724842243745,-500.0,0.00018789,2]
[336457849,1724842243755,-230.14755626,0.00018789,2]
[336457850,1724842243765,-500.0,0.00018789,2]
[336457851,1724842243775,-200.77505297,0.00018789,2]
[336457852,1724842243785,-500.0,0.00018789,2]
[336457853,1724842243794,-500.0,0.00018789,2]
[336457854,1724842243803,-500.0,0.00018789,2]
[336457855,1724842243813,-500.0,0.00018789,2]
[336457856,1724842243824,-500.0,0.00018789,2]
[336457857,1724842243834,-500.0,0.00018789,2]
[336457858,1724842243845,-500.0,0.00018789,2]
[336457859,1724842243855,-500.0,0.00018789,2]
[336457860,1724842243868,-500.0,0.00018789,2]
[336457861,1724842243877,-500.0,0.00018789,2]
[336457862,1724842243887,-500.0,0.00018789,2]
[336457863,1724842243897,-500.0,0.00018789,2]
[336457864,1724842243907,-500.0,0.00018789,2]
[336457865,1724842243918,-500.0,0.00018789,2]
[336457866,1724842243932,-500.0,0.00018789,2]
[336457867,1724842243942,-500.0,0.00018789,2]
[336457868,1724842243953,-500.0,0.00018789,2]
[336457869,1724842243964,-500.0,0.00018789,2]
[336457870,1724842243976,-500.0,0.00018789,2]
[336457871,1724842243985,-500.0,0.00018789,2]
[336457872,1724842243994,-500.0,0.00018789,2]
[336457873,1724842244005,-542.31622433,0.00018789,2]
[336457874,1724842244014,-500.0,0.00018789,2]
[336457875,1724842244026,-550.0,0.00018789,2]
[336457876,1724842244038,-18982.22078429,0.0001879,2]
[336457885,1724843018319,852.42,8e-05,2]
[336457886,1724843082593,405.69820043,8e-05,2]
[336457887,1724843089719,1309.86966635,8e-05,2]
[336457889,1724843102594,2145.45207588,8e-05,2]
[336457892,1724843150235,2113.86035463,8e-05,2]
[336457893,1724843152720,16329.96101397,8e-05,2]
[336457894,1724843164447,169.1612141,8e-05,2]
[336457895,1724843228184,-240.49967597,9.524e-05,2]
[336457896,1724843228207,-254.24615238,9.697e-05,2]
[336457897,1724843228237,-255.25136905,9.9e-05,2]
[336457898,1724843228261,-99.4810425,0.00012753,2]
[336457899,1724843245130,-523.24613022,9.429e-05,2]
[336457900,1724843245152,-205.211937,0.00011516,2]
[336457901,1724843245173,-414.21498412,0.00012753,2]
[336457902,1724843245197,-300.0,0.00012874,2]
[336457903,1724843245222,-324.51525287,0.00012875,2]
[336457904,1724843254119,-3496.41350192,0.00012875,2]
[336457905,1724843254149,-3798.12717211,0.00012875,2]
[336457907,1724843363092,-312.00232494,9.9e-05,2]
[336457911,1724843403770,166.22384774,9.9e-05,2]
[336457920,1724843432720,-17280.9440731,0.00012875,2]
[336457921,1724843432730,-1673.13629769,0.00012875,2]
[336457922,1724843432739,-493.77204427,0.0001295,2]
[336457923,1724843432749,-520.98226576,0.00012989,2]
[336457924,1724843432758,-863.27824545,0.00013,2]
[336457925,1724843432767,-1110.99437923,0.00013597,2]
[336457926,1724843432777,-495.61532932,0.00013688,2]
[336457927,1724843432787,-3000.0,0.00013699,2]
[336457928,1724843432796,-241.089157,0.00013699,2]
[336457929,1724843432805,-168.804,0.00014,2]
[336457930,1724843432816,-187.5,0.00014247,2]
[336457931,1724843432825,-712.5,0.00014247,2]
[336457932,1724843432834,-269.52047905,0.00014519,2]
[336457933,1724843432844,-500.0,0.00015069,2]
[336457934,1724843432854,-10348.85088979,0.00017898,2]
[336457935,1724843432864,-3221.65410378,0.00017916,2]
[336457936,1724843432874,-258.21133984,0.00017958,2]
[336457937,1724843432885,-153.0,0.00018301,2]
[336457938,1724843432895,-153.0,0.00018301,2]
[336457939,1724843432905,-287.21935189,0.00018434,2]
[336457940,1724843432915,-236.37698947,0.00018434,2]
[336457941,1724843432925,-304.43855232,0.00018434,2]
[336457942,1724843432935,-3290.54004704,0.00018443,2]
[336457943,1724843432979,-848.77109088,0.00018443,2]
[336457944,1724843432992,-1583.36142306,0.00018443,2]
[336457945,1724843433002,-500.0,0.00018528,2]
[336457946,1724843433012,-814.1918109,0.00018548,2]
[336457947,1724843433022,-700.0,0.00018749,2]
[336457948,1724843433032,-500.0,0.00018761,2]
[336457949,1724843433041,-335.97,0.0001878,2]
[336457950,1724843433051,-335.97,0.0001878,2]
[336457951,1724843433060,-335.97,0.0001878,2]
[336457952,1724843433072,-335.97,0.0001878,2]
[336457953,1724843433082,-335.97,0.0001878,2]
[336457954,1724843433092,-335.97,0.0001878,2]
[336457955,1724843433102,-551.39161732,0.0001879,2]
[336457956,1724843433111,-154.63660398,0.0001879,2]
[336457957,1724843433121,-847.004783,0.00018904,2]
[336457958,1724843433131,-500.0,0.00018907,2]
[336457959,1724843433142,-500.0,0.00018953,2]
[336457960,1724843433151,-533.26610706,0.00018999,2]
[336457961,1724843433161,-533.26610706,0.00018999,2]
[336457962,1724843433170,-700.0,0.00019082,2]
[336457963,1724843433180,-700.0,0.00019149,2]
[336457964,1724843433192,-220.831462,0.00019178,2]
[336457965,1724843433207,-251.0,0.00019178,2]
[336457966,1724843433222,-187.92707,0.00019178,2]
[336457967,1724843433232,-2000.0,0.0001926,2]
[336457968,1724843433242,-409.311066,0.0001926,2]
[336457969,1724843433251,-700.0,0.00019276,2]
[336457970,1724843433261,-500.0,0.00019299,2]
[336457971,1724843433272,-565.84241099,0.00019313,2]
[336457972,1724843433286,-700.0,0.00019367,2]
[336457973,1724843433295,-700.0,0.00019379,2]
[336457974,1724843433305,-700.0,0.00019382,2]
[336457975,1724843433314,-500.0,0.00019462,2]
[336457976,1724843433324,-500.0,0.0001962,2]
[336457977,1724843433334,-777.19447225,0.0001968,2]
[336457978,1724843433344,-328.6975756,0.00019717,2]
[336457979,1724843433356,-374.18117236,0.00019766,2]
[336457980,1724843433367,-230.14755626,0.00019769,2]
[336457981,1724843433377,-204.99002872,0.00019769,2]
[336457982,1724843433387,-315.34294601,0.00019769,2]
[336457983,1724843433398,-500.0,0.00019769,2]
[336457984,1724843433407,-500.0,0.00019769,2]
[336457985,1724843433417,-500.0,0.00019769,2]
[336457986,1724843433428,-500.0,0.00019769,2]
[336457987,1724843433437,-500.0,0.00019769,2]
[336457988,1724843433448,-200.77505297,0.00019769,2]
[336457989,1724843433460,-500.0,0.00019769,2]
[336457990,1724843433470,-500.0,0.00019769,2]
[336457991,1724843433479,-500.0,0.00019769,2]
[336457992,1724843433490,-437.63294429,0.00019769,2]
[336457993,1724843433503,-62.36705571,0.00019769,2]
[336457994,1724843433514,-500.0,0.00019769,2]
[336457995,1724843433524,-251.60043986,0.00019769,2]
[336457996,1724843433534,-500.0,0.00019769,2]
[336457997,1724843433544,-500.0,0.00019769,2]
[336457998,1724843433554,-500.0,0.00019769,2]
[336457999,1724843433564,-500.0,0.00019769,2]
[336458000,1724843433573,-500.0,0.00019769,2]
[336458001,1724843433584,-500.0,0.00019769,2]
[336458002,1724843433594,-200.0,0.00019769,2]
[336458003,1724843433605,-500.0,0.00019769,2]
[336458004,1724843433615,-500.0,0.00019769,2]
[336458005,1724843433626,-500.0,0.00019769,2]
[336458006,1724843433636,-500.0,0.00019769,2]
[336458007,1724843433646,-500.0,0.00019769,2]
[336458008,1724843433657,-500.0,0.00019769,2]
[336458009,1724843433666,-500.0,0.00019769,2]
[336458010,1724843433676,-500.0,0.00019769,2]
[336458011,1724843433687,-500.0,0.00019769,2]
[336458012,1724843433696,-250.0,0.00019769,2]
[336458013,1724843433719,-1168.85231216,0.00019769,5]
[336458014,1724843433729,-3127.60940405,0.0001977,2]
[336458015,1724843433961,-2215.87473507,0.0001977,2]
[336458037,1724843438780,-3169.34334981,0.0001977,2]
[336458045,1724843438989,-7377.88485687,0.0001977,2]
[336458046,1724843439001,-468.783389,0.0001977,2]
[336458047,1724843439013,-19665.09622633,0.0001977,2]
[336458048,1724843439027,-269193.42419187,0.0001977,2]
[336458049,1724843439039,-500.0,0.00019773,2]
[336458050,1724843439048,-44801.81031955,0.0001978,2]
[336458054,1724843439306,-388.4903891,0.0001978,2]
[336458077,1724843441034,-707.88382093,0.0001978,2]
[336458079,1724843441046,-42989.81547042,0.0001978,2]
[336458081,1724843441055,-1905.61693635,0.00019833,2]
[336458083,1724843441065,-465.00594586,0.0001985,2]
[336458085,1724843441074,-700.0,0.00019933,2]
[336458087,1724843441084,-151.0,0.0001998,2]
[336458089,1724843441094,-151.0,0.0001998,2]
[336458091,1724843441103,-151.0,0.0001998,2]
[336458093,1724843441113,-151.0,0.0001998,2]
[336458095,1724843441123,-336.637882,0.0001998,2]
[336458098,1724843441133,-336.637882,0.0001998,2]
[336458100,1724843441142,-629.412743,0.0001998,2]
[336458102,1724843441152,-629.412743,0.0001998,2]
[336458104,1724843441162,-183.766337,0.0001998,2]
[336458106,1724843441171,-14213.71436087,0.0001998,5]
[336458108,1724843441181,-7869.49994432,0.0001998,2]
[336458110,1724843441193,-2383.01684639,0.0001998,2]
[336458112,1724843441205,-4161.81700004,0.0001998,2]
[336458165,1724843443909,-405.782476,0.0001998,2]
[336458166,1724843443922,-85379.49488583,0.0001998,2]
[336458170,1724843446715,-1194.16613137,0.0001998,2]
[336458178,1724844452161,-863.27824545,0.00013,2]
[336458179,1724844452184,-216.03856293,0.00013596,2]
[336458180,1724844452205,-168.804,0.00014116,2]
[336458181,1724844452229,-1347.00857996,0.00014245,2]
[336458251,1724844638343,-270.19734543,0.00013698,7]
[336458252,1724844638356,-152.34385094,0.00013762,2]